[Event "Late-Titled-Tuesday-Blitz-April-16-2024"]
[Site "Chess.com"]
[Date "2024.04.16"]
[Round "11"]
[White "Sjakkerntobi"]
[Black "Oleg_Papayan"]
[Result "0-1"]
[WhiteElo "2519"]
[BlackElo "2675"]
[TimeControl "180+1"]
[EndTime "16:04:14 PDT"]
[Termination "Oleg_Papayan won by checkmate"]

1. e4 {[%clk 0:03:00.9]} 1... d5 {[%clk 0:03:00]} 2. exd5 {[%clk 0:03:00.1]}
2... Qxd5 {[%clk 0:03:00.9]} 3. Nc3 {[%clk 0:03:00.7]} 3... Qd8 {[%clk
0:03:01.5]} 4. Bc4 {[%clk 0:03:00.5]} 4... c6 {[%clk 0:03:02.4]} 5. Nf3 {[%clk
0:03:00.6]} 5... Bf5 {[%clk 0:03:02.8]} 6. d4 {[%clk 0:03:00.7]} 6... e6 {[%clk
0:03:02.9]} 7. Ne5 {[%clk 0:03:01]} 7... Nd7 {[%clk 0:03:02.8]} 8. Nxf7 {[%clk
0:02:49.5]} 8... Kxf7 {[%clk 0:03:02.9]} 9. g4 {[%clk 0:02:50.4]} 9... Bg6
{[%clk 0:02:57.4]} 10. h4 {[%clk 0:02:43.4]} 10... h5 {[%clk 0:02:49]} 11. Ne2
{[%clk 0:02:26]} 11... hxg4 {[%clk 0:02:32.5]} 12. Bxe6+ {[%clk 0:02:06.6]}
12... Kxe6 {[%clk 0:02:33.4]} 13. Nf4+ {[%clk 0:02:06.1]} 13... Kf7 {[%clk
0:02:16.2]} 14. Qxg4 {[%clk 0:02:04.7]} 14... Qa5+ {[%clk 0:02:09.8]} 15. Bd2
{[%clk 0:01:59.6]} 15... Qf5 {[%clk 0:02:10.7]} 16. Qg3 {[%clk 0:01:35.3]} 16...
Qe4+ {[%clk 0:02:05.5]} 17. Be3 {[%clk 0:01:35.3]} 17... Qxh1+ {[%clk
0:02:04.2]} 18. Kd2 {[%clk 0:01:35.3]} 18... Qe4 {[%clk 0:02:02.5]} 19. Rg1
{[%clk 0:01:22.8]} 19... Qxc2+ {[%clk 0:01:56.3]} 20. Ke1 {[%clk 0:01:23.1]}
20... Bd3 {[%clk 0:01:15.2]} 21. a3 {[%clk 0:00:49.4]} 21... Ngf6 {[%clk
0:00:54]} 22. Qh3 {[%clk 0:00:39.8]} 22... Re8 {[%clk 0:00:51.6]} 23. Rg5 {[%clk
0:00:24.2]} 23... Qc1# {[%clk 0:00:39.4]} 0-1

[Event "Late-Titled-Tuesday-Blitz-April-16-2024"]
[Site "Chess.com"]
[Date "2024.04.16"]
[Round "11"]
[White "mbojan"]
[Black "Fins0905"]
[Result "1-0"]
[WhiteElo "2959"]
[BlackElo "2784"]
[TimeControl "180+1"]
[EndTime "16:04:28 PDT"]
[Termination "mbojan won by resignation"]

1. g3 {[%clk 0:03:00.9]} 1... d5 {[%clk 0:02:57.1]} 2. Bg2 {[%clk 0:03:00.8]}
2... c6 {[%clk 0:02:56.4]} 3. d3 {[%clk 0:03:01.1]} 3... Nf6 {[%clk 0:02:56.3]}
4. Nf3 {[%clk 0:03:01.4]} 4... Bg4 {[%clk 0:02:55.7]} 5. O-O {[%clk 0:03:00.6]}
5... Nbd7 {[%clk 0:02:55.9]} 6. h3 {[%clk 0:03:01.2]} 6... Bh5 {[%clk
0:02:55.7]} 7. Qe1 {[%clk 0:03:01.3]} 7... e5 {[%clk 0:02:55.9]} 8. e4 {[%clk
0:03:01.5]} 8... dxe4 {[%clk 0:02:56.4]} 9. dxe4 {[%clk 0:03:02.2]} 9... Be7
{[%clk 0:02:56.8]} 10. a4 {[%clk 0:03:00.6]} 10... O-O {[%clk 0:02:55.8]} 11.
Nbd2 {[%clk 0:02:58.6]} 11... Re8 {[%clk 0:02:55.4]} 12. Nc4 {[%clk 0:02:58.2]}
12... Qc7 {[%clk 0:02:54.6]} 13. Nh4 {[%clk 0:02:52.5]} 13... Bf8 {[%clk
0:02:52.4]} 14. Nf5 {[%clk 0:02:47.6]} 14... b5 {[%clk 0:02:33.3]} 15. Nce3
{[%clk 0:02:28.2]} 15... a6 {[%clk 0:02:27.8]} 16. b4 {[%clk 0:02:17.8]} 16...
a5 {[%clk 0:01:59.7]} 17. axb5 {[%clk 0:02:15.5]} 17... axb4 {[%clk 0:01:49.6]}
18. Rxa8 {[%clk 0:02:14.4]} 18... Rxa8 {[%clk 0:01:50.5]} 19. bxc6 {[%clk
0:02:05.5]} 19... Qxc6 {[%clk 0:01:50.7]} 20. Bb2 {[%clk 0:02:06.1]} 20... Rc8
{[%clk 0:01:23.1]} 21. Qa1 {[%clk 0:01:53.9]} 21... Qc5 {[%clk 0:01:08.7]} 22.
Rc1 {[%clk 0:01:51.4]} 22... g6 {[%clk 0:00:58.9]} 23. g4 {[%clk 0:01:48.4]}
23... gxf5 {[%clk 0:00:55.5]} 24. exf5 {[%clk 0:01:49.3]} 24... Bh6 {[%clk
0:00:51.6]} 25. Re1 {[%clk 0:01:40.2]} 25... Bxe3 {[%clk 0:00:45.2]} 26. Rxe3
{[%clk 0:01:41.1]} 26... Bxg4 {[%clk 0:00:45.4]} 27. hxg4 {[%clk 0:01:31.9]}
27... Nxg4 {[%clk 0:00:46.3]} 28. Re2 {[%clk 0:01:32.5]} 28... Ndf6 {[%clk
0:00:34.7]} 29. Qa6 {[%clk 0:01:28.5]} 29... Qc4 {[%clk 0:00:31.1]} 30. Qxc4
{[%clk 0:01:19.9]} 30... Rxc4 {[%clk 0:00:32]} 31. f3 {[%clk 0:01:20.4]} 31...
Nh6 {[%clk 0:00:29.3]} 32. Bxe5 {[%clk 0:01:20.8]} 32... Nh5 {[%clk 0:00:26.5]}
33. f6 {[%clk 0:01:15.8]} 33... Nf5 {[%clk 0:00:13.5]} 34. Rd2 {[%clk
0:01:13.9]} 34... Rc8 {[%clk 0:00:13.2]} 35. Bh3 {[%clk 0:01:14]} 35... Nxf6
{[%clk 0:00:05.4]} 36. Bxf6 {[%clk 0:01:13.2]} 1-0

[Event "Late-Titled-Tuesday-Blitz-April-16-2024"]
[Site "Chess.com"]
[Date "2024.04.16"]
[Round "11"]
[White "ChessSwole"]
[Black "Mops_2004"]
[Result "0-1"]
[WhiteElo "2678"]
[BlackElo "2829"]
[TimeControl "180+1"]
[EndTime "16:04:31 PDT"]
[Termination "Mops_2004 won by resignation"]

1. d4 {[%clk 0:03:00.9]} 1... f5 {[%clk 0:02:58.4]} 2. Nf3 {[%clk 0:02:59.7]}
2... Nf6 {[%clk 0:02:58.6]} 3. g3 {[%clk 0:03:00.1]} 3... e6 {[%clk 0:02:56.9]}
4. Bg2 {[%clk 0:03:00]} 4... Be7 {[%clk 0:02:57.3]} 5. O-O {[%clk 0:03:00.4]}
5... Ne4 {[%clk 0:02:57.7]} 6. Nbd2 {[%clk 0:02:56]} 6... Nc6 {[%clk 0:02:55.1]}
7. c4 {[%clk 0:02:55]} 7... d5 {[%clk 0:02:54.9]} 8. b3 {[%clk 0:02:48.6]} 8...
a5 {[%clk 0:02:31.9]} 9. Bb2 {[%clk 0:02:45.7]} 9... h5 {[%clk 0:02:29.2]} 10.
h4 {[%clk 0:02:43.6]} 10... g5 {[%clk 0:02:28.8]} 11. Nxe4 {[%clk 0:02:43]}
11... fxe4 {[%clk 0:02:27.2]} 12. Nxg5 {[%clk 0:02:43.2]} 12... Bxg5 {[%clk
0:02:27.5]} 13. hxg5 {[%clk 0:02:44.1]} 13... Qxg5 {[%clk 0:02:27.8]} 14. Qc1
{[%clk 0:02:39.6]} 14... Qg4 {[%clk 0:02:23.4]} 15. f3 {[%clk 0:02:22.9]} 15...
exf3 {[%clk 0:01:46.4]} 16. Rxf3 {[%clk 0:02:23.8]} 16... Nxd4 {[%clk
0:01:46.3]} 17. Bxd4 {[%clk 0:02:14.3]} 17... Qxd4+ {[%clk 0:01:46.1]} 18. e3
{[%clk 0:02:14.6]} 18... Qe5 {[%clk 0:01:39.8]} 19. Qf1 {[%clk 0:02:04.3]} 19...
Bd7 {[%clk 0:01:37.3]} 20. cxd5 {[%clk 0:01:59.5]} 20... exd5 {[%clk 0:01:36.7]}
21. Re1 {[%clk 0:01:31.3]} 21... O-O-O {[%clk 0:01:33.3]} 22. e4 {[%clk
0:01:17.9]} 22... dxe4 {[%clk 0:01:25.9]} 23. Rf4 {[%clk 0:01:18.2]} 23... Rhg8
{[%clk 0:01:07.6]} 24. Rexe4 {[%clk 0:01:15.5]} 24... Qg5 {[%clk 0:01:00.9]} 25.
Re3 {[%clk 0:01:11.7]} 25... h4 {[%clk 0:00:39.8]} 26. gxh4 {[%clk 0:01:01.7]}
26... Qc5 {[%clk 0:00:35.8]} 27. Qf3 {[%clk 0:00:47.7]} 27... Bc6 {[%clk
0:00:31.8]} 28. Qh3+ {[%clk 0:00:48.3]} 28... Kb8 {[%clk 0:00:29.1]} 29. Rc4
{[%clk 0:00:46.6]} 29... Rxg2+ {[%clk 0:00:23.5]} 30. Qxg2 {[%clk 0:00:42.1]}
30... Qxe3+ {[%clk 0:00:23.4]} 31. Qf2 {[%clk 0:00:42.3]} 31... Rd1+ {[%clk
0:00:23.5]} 0-1

[Event "Late-Titled-Tuesday-Blitz-April-16-2024"]
[Site "Chess.com"]
[Date "2024.04.16"]
[Round "11"]
[White "KaydenTroffChess"]
[Black "FairChess_on_YouTube"]
[Result "0-1"]
[WhiteElo "2856"]
[BlackElo "3078"]
[TimeControl "180+1"]
[EndTime "16:05:02 PDT"]
[Termination "FairChess_on_YouTube won on time"]

1. d4 {[%clk 0:03:00.9]} 1... Nf6 {[%clk 0:02:58.8]} 2. Nf3 {[%clk 0:03:01.2]}
2... c5 {[%clk 0:02:58.7]} 3. dxc5 {[%clk 0:03:01.2]} 3... e6 {[%clk 0:02:58.2]}
4. Be3 {[%clk 0:03:01.5]} 4... Be7 {[%clk 0:02:53.7]} 5. g3 {[%clk 0:03:01.6]}
5... O-O {[%clk 0:02:51.9]} 6. Bg2 {[%clk 0:03:01.7]} 6... Qc7 {[%clk
0:02:37.7]} 7. O-O {[%clk 0:02:45]} 7... Bxc5 {[%clk 0:02:37.4]} 8. Bg5 {[%clk
0:02:40.8]} 8... Ne4 {[%clk 0:02:30.1]} 9. Qd3 {[%clk 0:02:26.9]} 9... d5 {[%clk
0:02:25.1]} 10. Nc3 {[%clk 0:02:24.3]} 10... f5 {[%clk 0:02:12.8]} 11. Bf4
{[%clk 0:02:05.6]} 11... Qb6 {[%clk 0:02:12.6]} 12. e3 {[%clk 0:02:03.5]} 12...
Be7 {[%clk 0:02:07.8]} 13. Ne5 {[%clk 0:01:38.9]} 13... g5 {[%clk 0:02:01.5]}
14. Kh1 {[%clk 0:00:48.1]} 14... gxf4 {[%clk 0:02:00.7]} 15. gxf4 {[%clk
0:00:47.8]} 15... Nc6 {[%clk 0:01:57.9]} 16. Nxd5 {[%clk 0:00:35.1]} 16... exd5
{[%clk 0:01:39.7]} 17. Qxd5+ {[%clk 0:00:36]} 17... Kh8 {[%clk 0:01:33]} 18.
Nf7+ {[%clk 0:00:33.4]} 18... Kg7 {[%clk 0:01:32.2]} 19. Bxe4 {[%clk 0:00:31.5]}
19... Rxf7 {[%clk 0:01:30.9]} 20. Rg1+ {[%clk 0:00:23.7]} 20... Kf8 {[%clk
0:01:30.5]} 21. Bd3 {[%clk 0:00:20]} 21... Qc5 {[%clk 0:01:17]} 22. Qg2 {[%clk
0:00:19.7]} 22... Bf6 {[%clk 0:01:10.1]} 23. Qg8+ {[%clk 0:00:13.3]} 23... Ke7
{[%clk 0:01:10.2]} 24. Rad1 {[%clk 0:00:12.1]} 24... Rb8 {[%clk 0:01:02.7]} 25.
e4 {[%clk 0:00:08.1]} 25... fxe4 {[%clk 0:00:41.1]} 26. Bxe4 {[%clk 0:00:09]}
26... Bf5 {[%clk 0:00:40.6]} 27. Qg2 {[%clk 0:00:09.2]} 27... Rg8 {[%clk
0:00:35.8]} 28. Qf3 {[%clk 0:00:02.8]} 28... Rxg1+ {[%clk 0:00:34.9]} 29. Kxg1
{[%clk 0:00:02.1]} 29... Nd4 {[%clk 0:00:31.6]} 0-1

[Event "Late-Titled-Tuesday-Blitz-April-16-2024"]
[Site "Chess.com"]
[Date "2024.04.16"]
[Round "11"]
[White "wild3000"]
[Black "cukus"]
[Result "0-1"]
[WhiteElo "2482"]
[BlackElo "2388"]
[TimeControl "180+1"]
[EndTime "16:05:02 PDT"]
[Termination "cukus won by checkmate"]

1. d4 {[%clk 0:02:45.9]} 1... Nf6 {[%clk 0:02:59]} 2. f4 {[%clk 0:02:43.3]} 2...
b6 {[%clk 0:02:55.5]} 3. Nf3 {[%clk 0:02:42.6]} 3... Bb7 {[%clk 0:02:56]} 4. g3
{[%clk 0:02:41.3]} 4... Ne4 {[%clk 0:02:55.8]} 5. Bg2 {[%clk 0:02:40.8]} 5... d6
{[%clk 0:02:56.3]} 6. O-O {[%clk 0:02:40.3]} 6... Nd7 {[%clk 0:02:56.6]} 7. e3
{[%clk 0:02:27.6]} 7... Ndf6 {[%clk 0:02:56.3]} 8. Nbd2 {[%clk 0:02:27.2]} 8...
g6 {[%clk 0:02:56]} 9. Nxe4 {[%clk 0:02:25.6]} 9... Nxe4 {[%clk 0:02:55.8]} 10.
Nd2 {[%clk 0:02:22.1]} 10... d5 {[%clk 0:02:55.7]} 11. Nxe4 {[%clk 0:02:19.2]}
11... dxe4 {[%clk 0:02:56.6]} 12. f5 {[%clk 0:02:11.3]} 12... Bg7 {[%clk
0:02:56.3]} 13. Qg4 {[%clk 0:02:01]} 13... h5 {[%clk 0:02:49.2]} 14. Qe2 {[%clk
0:01:59.9]} 14... g5 {[%clk 0:02:44.9]} 15. Qb5+ {[%clk 0:01:50.4]} 15... Qd7
{[%clk 0:02:43.2]} 16. Qxd7+ {[%clk 0:01:50]} 16... Kxd7 {[%clk 0:02:42.2]} 17.
c4 {[%clk 0:01:49.9]} 17... c5 {[%clk 0:02:30.3]} 18. d5 {[%clk 0:01:48.7]}
18... b5 {[%clk 0:02:30.8]} 19. cxb5 {[%clk 0:01:42.2]} 19... Bxd5 {[%clk
0:02:30.3]} 20. Rd1 {[%clk 0:01:42.2]} 20... e6 {[%clk 0:02:30.7]} 21. Bxe4
{[%clk 0:01:40.4]} 21... Kd6 {[%clk 0:02:30.5]} 22. Bg2 {[%clk 0:01:01.8]} 22...
Ke5 {[%clk 0:02:22.6]} 23. fxe6 {[%clk 0:00:56.6]} 23... Bxg2 {[%clk 0:02:17.9]}
24. Kxg2 {[%clk 0:00:57.4]} 24... Kxe6 {[%clk 0:02:18.4]} 25. a4 {[%clk
0:00:50]} 25... f5 {[%clk 0:02:06.6]} 26. Ra3 {[%clk 0:00:47.4]} 26... c4 {[%clk
0:02:04.5]} 27. a5 {[%clk 0:00:45.5]} 27... Rab8 {[%clk 0:01:58.1]} 28. Ra4
{[%clk 0:00:42.5]} 28... Rhc8 {[%clk 0:01:53.8]} 29. e4 {[%clk 0:00:29.7]} 29...
Rxb5 {[%clk 0:01:47.5]} 30. exf5+ {[%clk 0:00:29.2]} 30... Kxf5 {[%clk
0:01:44.8]} 31. Rf1+ {[%clk 0:00:28.5]} 31... Kg6 {[%clk 0:01:44.8]} 32. a6
{[%clk 0:00:26.6]} 32... Bxb2 {[%clk 0:01:40.9]} 33. Be3 {[%clk 0:00:22.6]}
33... Rc7 {[%clk 0:01:34.6]} 34. h4 {[%clk 0:00:18.4]} 34... gxh4 {[%clk
0:01:32.8]} 35. gxh4 {[%clk 0:00:19.3]} 35... c3 {[%clk 0:01:33.1]} 36. Kh3
{[%clk 0:00:19.3]} 36... c2 {[%clk 0:01:31.8]} 37. Raf4 {[%clk 0:00:18.1]} 37...
c1=Q {[%clk 0:01:24.8]} 38. Rf6+ {[%clk 0:00:17.8]} 38... Bxf6 {[%clk
0:01:19.8]} 39. Bxc1 {[%clk 0:00:16.9]} 39... Rb3+ {[%clk 0:01:15.1]} 40. Kg2
{[%clk 0:00:16.8]} 40... Rc2+ {[%clk 0:01:15.3]} 41. Kg1 {[%clk 0:00:14.3]}
41... Rg3+ {[%clk 0:01:08.9]} 42. Kh1 {[%clk 0:00:13.4]} 42... Rh3+ {[%clk
0:01:09.3]} 43. Kg1 {[%clk 0:00:13.4]} 43... Bd4+ {[%clk 0:01:09.9]} 44. Be3
{[%clk 0:00:12.4]} 44... Bxe3+ {[%clk 0:01:09.9]} 45. Rf2 {[%clk 0:00:13.3]}
45... Bxf2+ {[%clk 0:01:07.3]} 46. Kg2 {[%clk 0:00:14.2]} 46... Rg3+ {[%clk
0:01:04.7]} 47. Kf1 {[%clk 0:00:14.1]} 47... Rg1# {[%clk 0:01:04.4]} 0-1

[Event "Late-Titled-Tuesday-Blitz-April-16-2024"]
[Site "Chess.com"]
[Date "2024.04.16"]
[Round "11"]
[White "BogdanDeac"]
[Black "DenLaz"]
[Result "0-1"]
[WhiteElo "2994"]
[BlackElo "3116"]
[TimeControl "180+1"]
[EndTime "16:05:03 PDT"]
[Termination "DenLaz won on time"]

1. e4 {[%clk 0:03:00.9]} 1... c5 {[%clk 0:02:59.8]} 2. Nf3 {[%clk 0:03:00.4]}
2... e6 {[%clk 0:03:00.3]} 3. d4 {[%clk 0:03:00.5]} 3... cxd4 {[%clk 0:03:01.2]}
4. Nxd4 {[%clk 0:03:01]} 4... Nc6 {[%clk 0:03:01.9]} 5. Bf4 {[%clk 0:03:00.3]}
5... d6 {[%clk 0:02:59.3]} 6. Nxc6 {[%clk 0:02:47.2]} 6... bxc6 {[%clk
0:03:00.2]} 7. c4 {[%clk 0:02:47.4]} 7... Rb8 {[%clk 0:03:00.3]} 8. Qc2 {[%clk
0:02:44.9]} 8... Nf6 {[%clk 0:02:05.9]} 9. Nc3 {[%clk 0:02:34.9]} 9... e5 {[%clk
0:02:05.1]} 10. Bd2 {[%clk 0:02:23.8]} 10... Be7 {[%clk 0:02:04.5]} 11. Be2
{[%clk 0:02:23.4]} 11... O-O {[%clk 0:02:04.9]} 12. O-O {[%clk 0:02:22.5]} 12...
Be6 {[%clk 0:02:05.6]} 13. Be3 {[%clk 0:02:19.9]} 13... Qc7 {[%clk 0:02:05.5]}
14. Rab1 {[%clk 0:02:19.7]} 14... Ng4 {[%clk 0:02:03.6]} 15. Bc1 {[%clk
0:01:57.4]} 15... a5 {[%clk 0:01:59.8]} 16. a3 {[%clk 0:01:53]} 16... Nf6 {[%clk
0:01:56.3]} 17. Bd3 {[%clk 0:01:32.9]} 17... Rfc8 {[%clk 0:01:49.2]} 18. Bd2
{[%clk 0:01:11.1]} 18... Qd7 {[%clk 0:01:42.7]} 19. Qa4 {[%clk 0:01:07]} 19...
Ra8 {[%clk 0:01:40.8]} 20. Rfd1 {[%clk 0:01:06.2]} 20... h6 {[%clk 0:01:36.7]}
21. Be1 {[%clk 0:00:29.3]} 21... Qb7 {[%clk 0:01:35.5]} 22. Qc2 {[%clk
0:00:23.7]} 22... Qa7 {[%clk 0:01:25.5]} 23. b4 {[%clk 0:00:22.4]} 23... axb4
{[%clk 0:01:25.2]} 24. axb4 {[%clk 0:00:23.3]} 24... d5 {[%clk 0:01:24.3]} 25.
exd5 {[%clk 0:00:16.4]} 25... cxd5 {[%clk 0:01:25.2]} 26. c5 {[%clk 0:00:12.8]}
26... d4 {[%clk 0:01:25.4]} 27. Ne4 {[%clk 0:00:11.7]} 27... Nd5 {[%clk
0:01:25.4]} 28. Ng3 {[%clk 0:00:09.7]} 28... Rab8 {[%clk 0:01:18.2]} 29. Bd2
{[%clk 0:00:08.9]} 29... Qd7 {[%clk 0:01:13.9]} 30. Bf5 {[%clk 0:00:05.2]} 30...
Bg5 {[%clk 0:01:10.3]} 31. Bxe6 {[%clk 0:00:04.5]} 31... Qxe6 {[%clk 0:01:11.2]}
32. Ne4 {[%clk 0:00:04.1]} 32... Qg6 {[%clk 0:01:06.8]} 33. f3 {[%clk
0:00:03.5]} 33... Be3+ {[%clk 0:00:58]} 34. Kh1 {[%clk 0:00:03.4]} 34... f5
{[%clk 0:00:57.9]} 35. Nd6 {[%clk 0:00:02.7]} 35... Qxd6 {[%clk 0:00:56.5]} 36.
Qb3 {[%clk 0:00:01.5]} 36... Qe6 {[%clk 0:00:50.6]} 37. Bxe3 {[%clk 0:00:01.9]}
37... Rxb4 {[%clk 0:00:51.2]} 0-1

[Event "Late-Titled-Tuesday-Blitz-April-16-2024"]
[Site "Chess.com"]
[Date "2024.04.16"]
[Round "11"]
[White "subham777"]
[Black "Indefatigable11"]
[Result "1-0"]
[WhiteElo "2532"]
[BlackElo "2400"]
[TimeControl "180+1"]
[EndTime "16:05:11 PDT"]
[Termination "subham777 won by checkmate"]

1. e4 {[%clk 0:03:00.9]} 1... e6 {[%clk 0:02:52.7]} 2. Nf3 {[%clk 0:03:00.9]}
2... d5 {[%clk 0:02:52.9]} 3. Nc3 {[%clk 0:03:01.6]} 3... d4 {[%clk 0:02:51.5]}
4. Ne2 {[%clk 0:02:52]} 4... c5 {[%clk 0:02:52]} 5. d3 {[%clk 0:02:52.9]} 5...
Nc6 {[%clk 0:02:51.8]} 6. g3 {[%clk 0:02:53.8]} 6... e5 {[%clk 0:02:51.7]} 7.
Bg2 {[%clk 0:02:54.7]} 7... Nf6 {[%clk 0:02:50.7]} 8. O-O {[%clk 0:02:55.2]}
8... Be7 {[%clk 0:02:51]} 9. Ne1 {[%clk 0:02:46.3]} 9... O-O {[%clk 0:02:51.2]}
10. f4 {[%clk 0:02:46]} 10... Ne8 {[%clk 0:02:51.3]} 11. f5 {[%clk 0:02:21]}
11... Bg5 {[%clk 0:02:49.8]} 12. h4 {[%clk 0:02:12.4]} 12... Bxc1 {[%clk
0:02:49.4]} 13. Qxc1 {[%clk 0:02:11.6]} 13... f6 {[%clk 0:02:49.2]} 14. g4
{[%clk 0:02:11.3]} 14... Nd6 {[%clk 0:02:48.7]} 15. g5 {[%clk 0:02:11.6]} 15...
c4 {[%clk 0:02:46.7]} 16. Nf3 {[%clk 0:02:10]} 16... Bd7 {[%clk 0:02:39.2]} 17.
Ng3 {[%clk 0:02:06.3]} 17... Rc8 {[%clk 0:02:35]} 18. a3 {[%clk 0:01:59.2]}
18... Qb6 {[%clk 0:02:25]} 19. g6 {[%clk 0:01:52.1]} 19... h6 {[%clk 0:02:23.9]}
20. Nh2 {[%clk 0:01:47.7]} 20... cxd3 {[%clk 0:02:19.7]} 21. cxd3 {[%clk
0:01:38.9]} 21... Nb4 {[%clk 0:02:18.7]} 22. Qd2 {[%clk 0:01:27.7]} 22... Nc2
{[%clk 0:02:15.6]} 23. Ng4 {[%clk 0:01:21.8]} 23... Rfe8 {[%clk 0:02:05.4]} 24.
Nxh6+ {[%clk 0:01:15.8]} 24... gxh6 {[%clk 0:02:05]} 25. Qxh6 {[%clk 0:01:15.7]}
25... Re7 {[%clk 0:02:04.7]} 26. Nh5 {[%clk 0:01:15.2]} 26... Ne8 {[%clk
0:02:02.8]} 27. g7 {[%clk 0:00:36.6]} 27... Rxg7 {[%clk 0:02:01.1]} 28. Nxg7
{[%clk 0:00:32.4]} 28... Nxg7 {[%clk 0:02:00.2]} 29. Rac1 {[%clk 0:00:31.8]}
29... Ne3 {[%clk 0:01:54.7]} 30. Rxc8+ {[%clk 0:00:29.1]} 30... Bxc8 {[%clk
0:01:55.3]} 31. Rf3 {[%clk 0:00:26.4]} 31... Qc7 {[%clk 0:01:47.2]} 32. Qxf6
{[%clk 0:00:22.6]} 32... Qc1+ {[%clk 0:01:33.8]} 33. Bf1 {[%clk 0:00:20.6]}
33... Qc7 {[%clk 0:01:24.4]} 34. Qg5 {[%clk 0:00:16.1]} 34... Kf8 {[%clk
0:01:19.7]} 35. f6 {[%clk 0:00:13.3]} 35... Ne6 {[%clk 0:01:18.2]} 36. Qh6+
{[%clk 0:00:12.5]} 36... Kf7 {[%clk 0:01:12.5]} 37. Qh7+ {[%clk 0:00:07.6]}
37... Kf8 {[%clk 0:01:10.3]} 38. Qh8+ {[%clk 0:00:06]} 38... Kf7 {[%clk
0:01:10.3]} 39. Rg3 {[%clk 0:00:04.7]} 39... Qd8 {[%clk 0:00:38.6]} 40. Rg7+
{[%clk 0:00:03.9]} 40... Kxf6 {[%clk 0:00:38.5]} 41. Qh6# {[%clk 0:00:03.6]} 1-0

[Event "Late-Titled-Tuesday-Blitz-April-16-2024"]
[Site "Chess.com"]
[Date "2024.04.16"]
[Round "11"]
[White "FabianoCaruana"]
[Black "Durarbayli"]
[Result "1-0"]
[WhiteElo "3095"]
[BlackElo "2912"]
[TimeControl "180+1"]
[EndTime "16:05:17 PDT"]
[Termination "FabianoCaruana won on time"]

1. d4 {[%clk 0:03:00.9]} 1... d5 {[%clk 0:02:59.3]} 2. c4 {[%clk 0:03:00.9]}
2... c6 {[%clk 0:02:59.8]} 3. Nf3 {[%clk 0:03:01.1]} 3... Nf6 {[%clk 0:03:00.4]}
4. Nc3 {[%clk 0:02:58.7]} 4... e6 {[%clk 0:03:00.4]} 5. e3 {[%clk 0:02:57.1]}
5... Nbd7 {[%clk 0:02:59.7]} 6. Qc2 {[%clk 0:02:57.3]} 6... Bd6 {[%clk
0:02:59.4]} 7. b3 {[%clk 0:02:57.7]} 7... O-O {[%clk 0:02:58.1]} 8. Be2 {[%clk
0:02:55.1]} 8... e5 {[%clk 0:02:58.4]} 9. cxd5 {[%clk 0:02:53.7]} 9... e4 {[%clk
0:02:58.9]} 10. Nxe4 {[%clk 0:02:50.1]} 10... Nxe4 {[%clk 0:02:59.8]} 11. Qxe4
{[%clk 0:02:50.3]} 11... Nf6 {[%clk 0:03:00.5]} 12. Qc2 {[%clk 0:02:49.3]} 12...
cxd5 {[%clk 0:03:01.1]} 13. O-O {[%clk 0:02:48.6]} 13... Ne4 {[%clk 0:03:01.3]}
14. Nd2 {[%clk 0:02:38.2]} 14... Bf5 {[%clk 0:02:44.1]} 15. Nxe4 {[%clk
0:02:36.6]} 15... Bxe4 {[%clk 0:02:43]} 16. Bd3 {[%clk 0:02:31.3]} 16... Rc8
{[%clk 0:01:16.5]} 17. Qe2 {[%clk 0:02:29.8]} 17... Qc7 {[%clk 0:01:16.6]} 18.
Bxe4 {[%clk 0:02:04.5]} 18... dxe4 {[%clk 0:01:17.5]} 19. g3 {[%clk 0:02:02.3]}
19... Qc2 {[%clk 0:01:17.2]} 20. Bd2 {[%clk 0:01:45.2]} 20... Ba3 {[%clk
0:01:10.4]} 21. Rfd1 {[%clk 0:01:37.8]} 21... a6 {[%clk 0:01:01.4]} 22. Qe1
{[%clk 0:01:34.6]} 22... Bb2 {[%clk 0:00:39.4]} 23. Rab1 {[%clk 0:01:34]} 23...
Ba3 {[%clk 0:00:28.4]} 24. d5 {[%clk 0:01:16.5]} 24... Rfd8 {[%clk 0:00:26.2]}
25. Bb4 {[%clk 0:00:41.6]} 25... Qxa2 {[%clk 0:00:25.2]} 26. Ra1 {[%clk
0:00:38.2]} 26... Bxb4 {[%clk 0:00:24.8]} 27. Qxb4 {[%clk 0:00:39.1]} 27... Qc2
{[%clk 0:00:23.4]} 28. Qxb7 {[%clk 0:00:38.2]} 28... Rb8 {[%clk 0:00:20.6]} 29.
Qe7 {[%clk 0:00:35.3]} 29... Re8 {[%clk 0:00:16.9]} 30. Qd6 {[%clk 0:00:31.3]}
30... Qxb3 {[%clk 0:00:10.2]} 31. Qxa6 {[%clk 0:00:28.6]} 31... Rb6 {[%clk
0:00:09.1]} 32. Qa5 {[%clk 0:00:23]} 32... Rf6 {[%clk 0:00:05.3]} 33. d6 {[%clk
0:00:20.5]} 33... Qc2 {[%clk 0:00:02.1]} 34. Rd2 {[%clk 0:00:20.8]} 34... Qc6
{[%clk 0:00:01]} 35. d7 {[%clk 0:00:20.8]} 1-0

[Event "Late-Titled-Tuesday-Blitz-April-16-2024"]
[Site "Chess.com"]
[Date "2024.04.16"]
[Round "11"]
[White "volcanoexplorer"]
[Black "Ramil_Faizrakhmanov"]
[Result "1-0"]
[WhiteElo "2657"]
[BlackElo "2854"]
[TimeControl "180+1"]
[EndTime "16:05:17 PDT"]
[Termination "volcanoexplorer won by resignation"]

1. e4 {[%clk 0:03:00.9]} 1... c6 {[%clk 0:02:59.3]} 2. d4 {[%clk 0:03:00.8]}
2... d5 {[%clk 0:03:00.2]} 3. f3 {[%clk 0:03:01.4]} 3... e6 {[%clk 0:02:59.6]}
4. Nc3 {[%clk 0:03:00.9]} 4... Bb4 {[%clk 0:03:00]} 5. Ne2 {[%clk 0:03:00.8]}
5... Ne7 {[%clk 0:03:00]} 6. a3 {[%clk 0:03:00.5]} 6... Ba5 {[%clk 0:02:59.3]}
7. e5 {[%clk 0:02:57.6]} 7... O-O {[%clk 0:02:57.6]} 8. h4 {[%clk 0:02:58]} 8...
Bc7 {[%clk 0:02:55.9]} 9. h5 {[%clk 0:02:57.1]} 9... c5 {[%clk 0:02:55.1]} 10.
h6 {[%clk 0:02:46.9]} 10... g6 {[%clk 0:02:55]} 11. f4 {[%clk 0:02:46.8]} 11...
cxd4 {[%clk 0:02:46.9]} 12. Nb5 {[%clk 0:02:41.8]} 12... Ba5+ {[%clk 0:02:36.7]}
13. b4 {[%clk 0:02:39.4]} 13... Bb6 {[%clk 0:02:36.5]} 14. Nbxd4 {[%clk
0:02:35.8]} 14... a5 {[%clk 0:02:36]} 15. Be3 {[%clk 0:02:08.2]} 15... Nbc6
{[%clk 0:02:34.4]} 16. b5 {[%clk 0:02:03.1]} 16... Nxd4 {[%clk 0:02:33.8]} 17.
Nxd4 {[%clk 0:01:56.4]} 17... Bd7 {[%clk 0:02:33.4]} 18. Be2 {[%clk 0:01:21.8]}
18... Rc8 {[%clk 0:02:33.1]} 19. Qd2 {[%clk 0:01:20.5]} 19... Qc7 {[%clk
0:02:32.7]} 20. Kf2 {[%clk 0:01:18.5]} 20... Bxd4 {[%clk 0:02:27]} 21. Qxd4
{[%clk 0:01:05.3]} 21... Nf5 {[%clk 0:02:25.5]} 22. Qd2 {[%clk 0:00:33.2]} 22...
Qxc2 {[%clk 0:02:24.9]} 23. Rhc1 {[%clk 0:00:30.8]} 23... Qa4 {[%clk 0:02:24.3]}
24. Bc5 {[%clk 0:00:29.3]} 24... Rfe8 {[%clk 0:02:16.8]} 25. g4 {[%clk
0:00:26.1]} 25... Nxh6 {[%clk 0:02:11.3]} 26. Rab1 {[%clk 0:00:20.3]} 26... Rxc5
{[%clk 0:01:56.1]} 27. Rxc5 {[%clk 0:00:19.7]} 27... Qxa3 {[%clk 0:01:51.9]} 28.
Rc3 {[%clk 0:00:16.6]} 28... Qe7 {[%clk 0:01:39.1]} 29. Rh1 {[%clk 0:00:16.1]}
29... Kg7 {[%clk 0:01:21.1]} 30. f5 {[%clk 0:00:11.5]} 30... Ng8 {[%clk
0:00:55.1]} 31. f6+ {[%clk 0:00:11.5]} 31... Nxf6 {[%clk 0:00:55.4]} 32. exf6+
{[%clk 0:00:07.9]} 32... Qxf6+ {[%clk 0:00:56.3]} 33. Rf3 {[%clk 0:00:08]} 1-0